fUSD/lending_fUSD_20240127
["ID","MTS","AMOUNT","RATE_DAILY","PERIOD"]
[312830359,1706313605269,250.0,0.00021315,2]
[312830360,1706313607798,170.76,0.00021302,2]
[312830361,1706313613621,195.7,0.00021292,2]
[312830362,1706313688414,165.83,0.00021261,2]
[312830363,1706313711726,263.51244958,0.00020932,2]
[312830364,1706313724957,265.07,0.00019376,2]
[312830365,1706313776511,200.0,0.00021292,2]
[312830366,1706313797063,182.75,0.00021463,2]
[312830367,1706313797307,182.75,0.00021522,2]
[312830368,1706313797508,182.75,0.00021581,2]
[312830370,1706313875252,14501.82,0.00021253,2]
[312830371,1706313888696,634.25,0.00021234,2]
[312830372,1706313899457,285.84840348,0.00021619,2]
[312830373,1706313899639,530.17574684,0.00021619,2]
[312830374,1706313904835,1319.09295486,0.00021619,2]
[312830375,1706313912979,302.72900605,0.00021619,2]
[312830376,1706313913970,2310.49722789,0.00021619,2]
[312830377,1706313914773,1180.14825816,0.00021619,2]
[312830378,1706313928365,155.0,0.00021619,2]
[312830379,1706313929247,4633.47107081,0.00021619,2]
[312830380,1706313930985,155.0,0.00021619,2]
[312830381,1706313933278,162.03229046,0.00021619,2]
[312830382,1706313934839,218.31632462,0.00021619,2]
[312830383,1706313935309,155.0,0.00021619,2]
[312830384,1706313939829,265.90676222,0.00021619,2]
[312830385,1706313942358,1770.60234352,0.00021619,2]
[312830386,1706313943175,4706.2650502,0.00021619,2]
[312830387,1706313944252,250.71178786,0.00021619,2]
[312830388,1706313945972,4643.44835688,0.00021619,2]
[312830389,1706313951648,338.17308084,0.00021619,2]
[312830390,1706313953371,155.0,0.00021619,2]
[312830391,1706313969351,1319.09295486,0.00021619,2]
[312830392,1706313997303,1180.14825816,0.00021619,2]
[312830393,1706313998065,192.30668512,0.00021539,2]
[312830394,1706314002863,192.30668509,0.00021611,2]
[312830395,1706314035856,1319.09295486,0.00021619,2]
[312830400,1706314116390,1319.09295486,0.00021619,2]
[312830401,1706314121869,301.77033695,0.00021619,2]
[312830404,1706314146523,183.02,0.00021128,2]
[312830407,1706314160699,250.0,0.00021153,2]
[312830408,1706314168156,251.81,0.00019244,2]
[312830409,1706314168537,251.81,0.00021508,2]
[312830412,1706314225781,155.33,0.00021365,2]
[312830413,1706314225983,155.33,0.00021423,2]
[312830414,1706314226176,155.33,0.00021482,2]
[312830415,1706314226411,155.33,0.0002154,2]
[312830416,1706314226615,155.33,0.00021599,2]
[312830433,1706314231724,-4192.088442,0.0002162,2]
[312830437,1706314231783,-164.49458665,0.0002162,2]
[312830438,1706314231792,-155.33,0.00021658,2]
[312830439,1706314231801,-268.9978855,0.00021658,2]
[312830440,1706314231811,-192.30668509,0.00021682,2]
[312830441,1706314231820,-150.99,0.00021711,2]
[312830442,1706314231830,-130.27081775,0.00021716,2]
[312830443,1706314231842,-25.05918225,0.00021716,2]
[312830444,1706314231851,-192.30668509,0.00021754,2]
[312830445,1706314231861,-4009.59330697,0.00021754,2]
[312830446,1706314231872,-937.93475933,0.00021754,2]
[312830447,1706314231884,-1071.35837695,0.00021754,2]
[312830448,1706314231895,-3981.10355675,0.00021754,2]
[312830449,1706314231905,-155.33,0.00021775,2]
[312830450,1706314231914,-499.99,0.00021813,2]
[312830451,1706314231923,-192.30668509,0.00021826,2]
[312830452,1706314231932,-3325.22,0.0002183,2]
[312830453,1706314231941,-155.33,0.00021833,2]
[312830454,1706314231950,-155.33,0.00021892,2]
[312830455,1706314231959,-192.30668509,0.00021897,2]
[312830456,1706314231968,-250.0,0.00021918,2]
[312830457,1706314231978,-155.33,0.00021951,2]
[312830458,1706314231987,-192.30668509,0.00021969,2]
[312830459,1706314231996,-155.0,0.00021992,2]
[312830460,1706314232005,-712.22,0.00021994,2]
[312830461,1706314232014,-729.46,0.00021995,2]
[312830462,1706314232023,-729.63,0.00021996,2]
[312830463,1706314232033,-159.4590838,0.00022,2]
[312830465,1706314232042,-176.58,0.00022,2]
[312830467,1706314232052,-500.0,0.00022,2]
[312830468,1706314232060,-155.33,0.00022009,2]
[312830469,1706314232069,-1043.56158327,0.00022039,2]
[312830470,1706314232078,-192.30668509,0.0002204,2]
[312830471,1706314232087,-155.33,0.00022068,2]
[312830472,1706314232096,-1983.15041826,0.00022078,2]
[312830473,1706314232106,-192.30668509,0.00022112,2]
[312830474,1706314232115,-155.33,0.00022126,2]
[312830475,1706314232124,-166.44,0.00022148,2]
[312830476,1706314232133,-192.30668509,0.00022184,2]
[312830477,1706314232141,-155.33,0.00022185,2]
[312830478,1706314232150,-155.33,0.00022244,2]
[312830479,1706314232159,-192.30668509,0.00022255,2]
[312830480,1706314232169,-734.34,0.00022271,2]
[312830481,1706314232178,-155.33,0.00022302,2]
[312830482,1706314232187,-192.30668509,0.00022327,2]
[312830483,1706314232196,-155.33,0.00022361,2]
[312830484,1706314232206,-192.30668509,0.00022399,2]
[312830485,1706314232215,-155.33,0.00022419,2]
[312830486,1706314232225,-1429.37855005,0.00022448,2]
[312830487,1706314232234,-27066.39628564,0.00022461,2]
[312830488,1706314232243,-192.30668509,0.0002247,2]
[312830489,1706314232252,-22635.3430364,0.00022471,2]
[312830490,1706314232262,-155.33,0.00022478,2]
[312830491,1706314232271,-150.77564097,0.00022532,2]
[312830492,1706314232280,-301.39278413,0.00022541,2]
[312830493,1706314232289,-986.85924285,0.00022542,3]
[312830494,1706314232298,-192.30668509,0.00022542,2]
[312830495,1706314232307,-216.84,0.00022542,2]
[312830496,1706314232317,-163638.83219557,0.00022542,2]
[312830497,1706314232329,-442.76851,0.00022542,2]
[312830498,1706314232340,-811.06716842,0.00022542,2]
[312830499,1706314232351,-1003.8665897,0.00022542,2]
[312830500,1706314232363,-714.69912125,0.00022542,2]
[312830501,1706314232374,-1495.10991762,0.00022542,2]
[312830502,1706314232385,-836.5,0.00022542,2]
[312830503,1706314232397,-79533.18097554,0.00022542,2]
[312830504,1706314232408,-503.15432782,0.00022542,2]
[312830505,1706314232420,-20949.999,0.00022542,2]
[312830506,1706314232431,-314.08501124,0.00022542,2]
[312830507,1706314232447,-334.50747262,0.00022542,2]
[312830508,1706314232459,-4920.80836614,0.00022542,2]
[312830509,1706314232471,-924.8855308,0.00022542,2]
[312830510,1706314232486,-580.41220598,0.00022542,2]
[312830511,1706314232498,-416.3775075,0.00022542,2]
[312830512,1706314232512,-1061.32060187,0.00022542,2]
[312830520,1706314237749,-150.0,0.0002162,2]
[312830521,1706314237760,-475.10647835,0.00022448,2]
[312830522,1706314237771,-77.71767565,0.00022536,2]
[312830523,1706314237804,-1351.6608744,0.00022536,2]
[312830524,1706314237815,-51323.64539177,0.00022542,2]
[312830525,1706314237864,-1203.29076082,0.00022542,2]
[312830526,1706314237878,-1369.29431586,0.00022542,2]
[312830527,1706314237975,-470.65932162,0.00022542,2]
[312830528,1706314238084,-1792.04521374,0.00022542,2]
[312830535,1706314240299,-49723.26910108,0.00022542,2]
[312830536,1706314240311,-81878.51963286,0.00022542,2]
[312830537,1706314240356,-5126.8903347,0.00022542,2]
[312830538,1706314240368,-3400.86013248,0.00022542,2]
[312830539,1706314241789,-648.37714593,0.00022542,2]
[312830540,1706314241801,-667.79630865,0.00022542,2]
[312830541,1706314241812,-799.02122007,0.00022542,2]
[312830579,1706314242784,-4381.6,0.00022542,2]
[312830582,1706314242796,-316.11183262,0.00022542,2]
[312830583,1706314242807,-2124.12615936,0.00022542,2]
[312830594,1706314242901,-1173.89089684,0.00022542,2]
[312830599,1706314242959,-346.98199227,0.00022542,2]
[312830605,1706314245959,-421690.19351408,0.00022542,2]
[312830614,1706314247764,-19550.85222318,0.00022542,2]
[312830615,1706314247775,-176.58,0.00022548,2]
[312830616,1706314247785,-500.0,0.00022548,2]
[312830617,1706314247795,-192.30668509,0.00022613,2]
[312830618,1706314247806,-1429.37855005,0.00022624,2]
[312830619,1706314247815,-1982.4556,0.00022667,2]
[312830620,1706314247824,-192.30668509,0.00022685,2]
[312830621,1706314247833,-529.52307039,0.00022693,2]
[312830622,1706314247842,-2307.72656255,0.00022693,2]
[312830623,1706314247851,-285.40187788,0.00022694,2]
[312830624,1706314247860,-280.43561941,0.00022694,2]
[312830625,1706314247871,-155.0,0.00022694,2]
[312830626,1706314247882,-155.0,0.00022694,2]
[312830627,1706314247891,-289.77449273,0.00022694,2]
[312830628,1706314247901,-218.04865462,0.00022694,2]
[312830629,1706314247911,-4628.12499057,0.00022694,2]
[312830630,1706314247921,-1251.33503589,0.00022694,2]
[312830631,1706314247931,-4251.93051247,0.00022695,2]
[312830632,1706314247940,-155.0,0.00022695,2]
[312830633,1706314247949,-1071.96370442,0.00022695,2]
[312830634,1706314247959,-310.53705764,0.00022695,2]
[312830635,1706314247969,-400.0,0.00022695,2]
[312830636,1706314247978,-337.58217635,0.00022695,2]
[312830637,1706314247987,-155.23183878,0.00022695,2]
[312830638,1706314247996,-362.14319027,0.00022695,2]
[312830639,1706314248006,-196.97758643,0.00022695,2]
[312830640,1706314248015,-8053.79626871,0.00022695,2]
[312830641,1706314248026,-4493.00019474,0.00022695,2]
[312830642,1706314248036,-155.0,0.00022695,2]
[312830643,1706314248045,-265.59460477,0.00022695,2]
[312830644,1706314248054,-1768.67046931,0.00022695,2]
[312830645,1706314248066,-1536.57178356,0.00022695,2]
[312830646,1706314248077,-4639.54858608,0.00022695,2]
[312830647,1706314248087,-337.76205171,0.00022695,2]
[312830648,1706314248097,-249.44638377,0.00022695,2]
[312830649,1706314248107,-155.0,0.00022695,2]
[312830650,1706314248116,-1295.05839029,0.00022695,2]
[312830651,1706314248127,-245.21688013,0.00022696,2]
[312830652,1706314248141,-524.41305345,0.00022696,2]
[312830653,1706314248155,-155.0,0.00022696,2]
[312830654,1706314248169,-3864.01463895,0.00022696,2]
[312830655,1706314248183,-343.55451932,0.00022696,2]
[312830656,1706314248194,-918.16081653,0.00022696,2]
[312830657,1706314248207,-502.01326483,0.00022696,2]
[312830658,1706314248219,-308.0854695,0.00022696,2]
[312830659,1706314248232,-1137.90745504,0.00022696,2]
[312830660,1706314248246,-2148.1042989,0.00022696,2]
[312830661,1706314248259,-371.63566507,0.00022696,2]
[312830662,1706314248272,-24374.22356804,0.00022697,2]
[312830663,1706314248286,-155.0,0.00022698,2]
[312830664,1706314248297,-197.17718022,0.00022698,2]
[312830665,1706314248309,-2141.84394814,0.00022698,2]
[312830666,1706314248321,-263.7290691,0.00022698,2]
[312830667,1706314248333,-155.0,0.00022698,2]
[312830668,1706314248346,-1854.56150247,0.00022698,2]
[312830669,1706314248359,-487.65466061,0.00022698,2]
[312830670,1706314248372,-155.0,0.00022698,2]
[312830671,1706314248385,-155.0,0.00022698,2]
[312830672,1706314248396,-155.0,0.00022698,2]
[312830673,1706314248406,-155.06911521,0.00022698,2]
[312830674,1706314248421,-155.0,0.00022698,2]
[312830675,1706314248434,-155.0,0.00022698,2]
[312830676,1706314248445,-2559.53645367,0.00022698,2]
[312830677,1706314248458,-5449.93104079,0.00022698,2]
[312830678,1706314248470,-504.52526623,0.00022698,2]
[312830679,1706314248482,-543.55682798,0.00022698,2]
[312830680,1706314248494,-1257.66975103,0.00022698,2]
[312830681,1706314248508,-235.42973985,0.00022698,2]
[312830682,1706314248523,-155.0,0.00022698,2]
[312830683,1706314248535,-249.04508672,0.00022698,2]
[312830684,1706314248549,-172.09680919,0.00022698,2]
[312830685,1706314248563,-155.0,0.00022698,2]
[312830686,1706314248577,-5221.14240979,0.00022698,2]
[312830687,1706314248592,-220.69816637,0.00022698,2]
[312830688,1706314248602,-3033.45925773,0.00022698,2]
[312830689,1706314248612,-1046.62349539,0.00022698,2]
[312830690,1706314248623,-202.91523791,0.00022698,2]
[312830691,1706314248635,-698.71506355,0.00022698,2]
[312830692,1706314248648,-3148.06260981,0.00022698,2]
[312830693,1706314248662,-155.0,0.00022698,2]
[312830694,1706314248674,-155.0,0.00022698,2]
[312830695,1706314248687,-364.50667034,0.00022698,2]
[312830696,1706314248699,-162.40501742,0.00022698,2]
[312830697,1706314248712,-1711.28766055,0.00022698,2]
[312830698,1706314248724,-4277.6096426,0.00022698,2]
[312830699,1706314248736,-401.03358243,0.00022698,2]
[312830700,1706314248748,-155.13211544,0.00022698,2]
[312830701,1706314248759,-2623.23288806,0.00022698,2]
[312830702,1706314248771,-155.0,0.00022698,2]
[312830703,1706314248783,-725.41,0.000227,2]
[312830704,1706314248794,-1000.0,0.000227,2]
[312830705,1706314248805,-74745.17634917,0.000227,2]
[312830706,1706314248824,-61393.6002,0.000227,2]
[312830707,1706314248843,-44750.86796569,0.000227,2]
[312830708,1706314248855,-3947.97998952,0.000227,2]
[312830709,1706314248869,-2986.46382857,0.000227,2]
[312830710,1706314248883,-430.74475152,0.000227,2]
[312830711,1706314248896,-9065.30569294,0.000227,2]
[312830712,1706314248909,-2127.57608946,0.000227,2]
[312830719,1706314356960,816.24,0.00021599,2]
[312830726,1706314444070,166.44,0.00021449,2]
[312830727,1706314566944,174.12,0.00021256,2]
[312830728,1706314580753,226.62,0.00019465,2]
[312830729,1706314590344,250.0,0.00021294,2]
[312830730,1706314623405,582.98882326,0.00021619,2]
[312830731,1706314624600,233.56361883,0.00021619,2]
[312830732,1706314626110,4279.3718956,0.00021619,2]
[312830733,1706314626151,279.77396429,0.00021619,2]
[312830734,1706314626658,1043.0192466,0.00021619,2]
[312830735,1706314628989,281.84911797,0.00021619,2]
[312830736,1706314630485,4356.58302865,0.00021619,2]
[312830737,1706314630672,203.37710716,0.00021619,2]
[312830738,1706314632500,155.0,0.00021619,2]
[312830739,1706314633797,387.60337984,0.00021619,2]
[312830740,1706314634673,458.54774053,0.00021619,2]
[312830741,1706314635355,178.12246561,0.00021619,2]
[312830742,1706314635710,155.0,0.00021619,2]
[312830743,1706314636968,355.08034491,0.00021619,2]
[312830744,1706314638806,155.0,0.00021619,2]
[312830745,1706314640813,33812.01447105,0.00021619,2]
[312830746,1706314641341,3149.41009144,0.00021619,2]
[312830747,1706314641369,1051.96106366,0.00021619,2]
[312830748,1706314641495,474.00032443,0.00021619,2]
[312830749,1706314641774,230.90329656,0.00021619,2]
[312830750,1706314642453,265.90676222,0.00021619,2]
[312830751,1706314644063,160.74,0.00021561,2]
[312830752,1706314645102,1712.03167812,0.00021619,2]
[312830753,1706314645659,2906.43367088,0.00021619,2]
[312830754,1706314646896,1072.40376802,0.00021619,2]
[312830755,1706314647417,155.0,0.00021619,2]
[312830756,1706314647780,384.9160274,0.00021619,2]
[312830757,1706314648636,155.0,0.00021619,2]
[312830758,1706314648666,310.6600047,0.00021619,2]
[312830759,1706314652289,155.0,0.00021619,2]
[312830760,1706314654527,155.0,0.00021619,2]
[312830761,1706314655721,314.76980196,0.00021619,2]
[312830762,1706314656565,155.0,0.00021619,2]
[312830763,1706314657351,3149.41009144,0.00021619,2]
[312830764,1706314657398,488.92098453,0.00021619,2]
[312830765,1706314657493,476.6296294,0.00021619,2]
[312830766,1706314658019,155.0,0.00021619,2]
[312830767,1706314659879,155.0,0.00021619,2]
[312830768,1706314660570,202.99988448,0.00021619,2]
[312830769,1706314661108,186.0402776,0.00021619,2]
[312830770,1706314662489,357.78302586,0.00021619,2]
[312830771,1706314662571,7796.09975802,0.00021619,2]
[312830772,1706314663041,2951.67554482,0.00021619,2]
[312830773,1706314664544,521.73679604,0.00021619,2]
[312830774,1706314664577,312.92552897,0.00021619,2]
[312830775,1706314664639,155.18505661,0.00021619,2]
[312830776,1706314664896,1174.27564109,0.00021619,2]
[312830777,1706314665582,160.91608575,0.00021619,2]
[312830778,1706314666268,155.3355389,0.00021619,2]
[312830779,1706314666935,289.42286172,0.00021619,2]
[312830780,1706314668532,181.24950927,0.00021619,2]
[312830781,1706314668955,155.0,0.00021619,2]
[312830782,1706314669419,377.49486276,0.00021619,2]
[312830783,1706314669760,155.0,0.00021619,2]
[312830784,1706314670016,629.89597196,0.00021619,2]
[312830785,1706314670059,260.59533858,0.00021619,2]
[312830786,1706314670227,247.08676004,0.00021619,2]
[312830787,1706314672896,13034.20202134,0.00021619,2]
[312830788,1706314673300,767.89133315,0.00021619,2]
[312830789,1706314673600,2323.45228506,0.00021619,2]
[312830790,1706314673743,314.40020548,0.00021619,2]
[312830791,1706314673881,212.58670693,0.00021619,2]
[312830792,1706314674043,158.4160326,0.00021619,2]
[312830793,1706314676553,186.2668107,0.00021619,2]
[312830794,1706314676586,1103.93436635,0.00021619,2]
[312830795,1706314677196,250.71178786,0.00021619,2]
[312830796,1706314677325,1835.39931686,0.00021619,2]
[312830797,1706314678473,301.77033695,0.00021619,2]
[312830798,1706314679403,487.58164327,0.00021619,2]
[312830799,1706314681046,2948.04192259,0.00021619,2]
[312830800,1706314681653,150.0,0.00021619,2]
[312830801,1706314682629,407.91200619,0.00021619,2]
[312830802,1706314684153,242.86814377,0.00021619,2]
[312830805,1706314699496,281.84911797,0.00021619,2]
[312830806,1706314709114,1043.0192466,0.00021619,2]
[312830807,1706314715355,154.13,0.00021158,2]
[312830808,1706314716158,2906.43367088,0.00021619,2]
[312830809,1706314721473,355.08034491,0.00021619,2]
[312830810,1706314723347,155.0,0.00021619,2]
[312830811,1706314738699,215.96315646,0.00021619,2]
[312830812,1706314741466,155.0,0.00021619,2]
[312830813,1706314747196,191.19525719,0.00021619,2]
[312830814,1706314751421,13034.20202134,0.00021619,2]
[312830815,1706314756188,517.4527674,0.00021619,2]
[312830816,1706314757307,57204.26513606,0.00021613,2]
[312830817,1706314761594,160.0,0.00021126,2]
[312830818,1706314764239,2000.0,0.00021126,2]
[312830819,1706314781622,1043.0192466,0.00021619,2]
[312830820,1706314794987,762.15,0.00021134,2]
[312830821,1706314795333,23900.0,0.00021134,2]
[312830822,1706314795794,165.29,0.00021134,2]
[312830823,1706314795992,355.08034491,0.00021619,2]
[312830824,1706314799634,886.17242356,0.00021619,2]
[312830825,1706314810981,229.324461,0.00021619,2]
[312830826,1706314811984,265.60593895,0.00021619,2]
[312830827,1706314813982,155.0,0.00021619,2]
[312830828,1706314831986,168.61937043,0.00021619,2]
[312830829,1706314871931,13034.20202134,0.00021619,2]
[312830830,1706314905713,547.28701104,0.00020917,2]
[312830831,1706314908932,2174.12249523,0.00021619,2]
[312830832,1706314920595,200.0,0.00021032,2]
[312830833,1706315006253,169.94,0.000211,2]
[312830834,1706315023195,153.20760001,0.00021521,2]
[312830835,1706315028225,153.20760001,0.00021602,2]
[312830836,1706315037886,173.79,0.00021072,2]
[312830837,1706315089646,222.88,0.00019049,2]
[312830838,1706315090023,222.88,0.00021313,2]
[312830839,1706315111073,250.0,0.00020967,2]
[312830840,1706315116026,160.74,0.00021248,2]
[312830841,1706315187637,2000.0,0.00020903,2]
[312830842,1706315215452,703.41,0.00020924,2]
[312830843,1706315221828,150.0,0.0002162,2]
[312830846,1706315229892,872.0,0.00020948,2]
[312830847,1706315241372,142813.2601,0.00021533,2]
[312830852,1706315317144,156.44361902,0.00021619,2]
[312830853,1706315338372,327.64544965,0.00021619,2]
[312830866,1706315380810,494.17957341,0.00021619,2]
[312830867,1706315383587,525.82330003,0.00021619,2]
[312830868,1706315401944,300.0,0.0002162,2]
[312830869,1706315403591,525.44286283,0.00021619,2]
[312830886,1706315431909,-1174.37054762,0.0002162,2]
[312830887,1706315431921,-818.10924833,0.0002162,2]
[312830888,1706315431933,-2261.07455373,0.0002162,2]
[312830889,1706315431942,-8363.92544627,0.00021621,2]
[312830890,1706315432161,-688.9343858,0.00021621,2]
[312830891,1706315432172,-1216.44,0.00021621,2]
[312830892,1706315432187,-904.74143889,0.00021621,2]
[312830893,1706315432198,-2306.58114959,0.00021621,2]
[312830894,1706315432209,-363.0257753,0.00021621,2]
[312830896,1706315432223,-639.91916815,0.00021621,2]
[312830898,1706315432234,-1258.57832661,0.00021621,2]
[312830901,1706315432245,-3079.21785668,0.00021621,2]
[312830903,1706315432256,-6004.13120219,0.00021621,2]
[312830905,1706315432267,-481.792402,0.00021621,2]
[312830907,1706315432278,-576.23513454,0.00021621,2]
[312830909,1706315432288,-1075.8,0.00021621,2]
[312830912,1706315432299,-2136.07388,0.00021621,2]
[312830914,1706315432310,-499.16534257,0.00021621,2]
[312830916,1706315432321,-1498.95358187,0.00021621,2]
[312830918,1706315432333,-396.0,0.00021621,2]
[312830920,1706315432344,-538.88,0.00021621,2]
[312830922,1706315432355,-410.0968622,0.00021621,2]
[312830925,1706315432370,-10632.38896861,0.00021621,2]
[312830927,1706315432379,-180.65103958,0.00021621,2]
[312830929,1706315432388,-466.10817728,0.00021621,2]
[312830931,1706315432397,-293.23156831,0.00021621,2]
[312830943,1706315432571,-184.14614466,0.00021621,2]
[312830945,1706315432581,-272.9060806,0.00021621,2]
[312830947,1706315432591,-517.36543049,0.00021621,2]
[312830949,1706315432600,-155.0,0.00021622,2]
[312830951,1706315432609,-1000.0,0.00021622,2]
[312830953,1706315432619,-233.38095613,0.00021624,2]
[312830955,1706315432628,-279.56119989,0.00021624,2]
[312830957,1706315432637,-578.50433953,0.00021624,2]
[312830960,1706315432654,-202.49319998,0.00021624,2]
[312830962,1706315432666,-2437.05904899,0.00021624,2]
[312830964,1706315432676,-3816.3457239,0.00021624,2]
[312830966,1706315432685,-1196.6199505,0.00021624,2]
[312830968,1706315432695,-164.23836392,0.00021624,2]
[312830970,1706315432705,-229.11178396,0.00021624,2]
[312830972,1706315432715,-155.0,0.00021624,2]
[312830973,1706315432726,-384.46565629,0.00021625,2]
[312830974,1706315432735,-177.97208985,0.00021625,2]
[312830975,1706315432746,-273.07674301,0.00021625,2]
[312830976,1706315432757,-374.27022215,0.00021625,2]
[312830977,1706315432767,-506.21905819,0.00021629,2]
[312830978,1706315432777,-12336.03,0.00021631,2]
[312830979,1706315432786,-150.99,0.00021631,2]
[312830980,1706315432797,-224.99,0.00021631,3]
[312830981,1706315432806,-1310.51,0.00021631,2]
[312830982,1706315432816,-2073.1,0.00021631,2]
[312830983,1706315432826,-503.16,0.00021631,2]
[312830984,1706315432836,-784.04,0.00021631,2]
[312830985,1706315432846,-9999.99,0.00021631,2]
[312830986,1706315432857,-272.0,0.00021631,2]
[312830987,1706315432867,-1000.05,0.00021632,2]
[312830988,1706315432878,-767.05,0.00021632,2]
[312830989,1706315432888,-2089.59,0.00021632,2]
[312830990,1706315432898,-833.83,0.00021632,2]
[312830991,1706315432908,-499.99,0.00021632,2]
[312830992,1706315432918,-157.39258602,0.00021653,2]
[312830993,1706315432929,-153.20760001,0.00021683,2]
[312830994,1706315432939,-43599.0,0.00021698,2]
[312830995,1706315432949,-5375.4697,0.00021718,2]
[312830996,1706315432960,-580.7226,0.00021718,2]
[312830997,1706315432970,-470.7135,0.00021718,2]
[312830998,1706315432982,-659.52412099,0.00021718,2]
[312830999,1706315432991,-153.20760001,0.00021764,2]
[312831000,1706315433001,-160.74,0.00021802,2]
[312831001,1706315433011,-652.84309835,0.00021807,2]
[312831002,1706315433021,-1147.9939,0.00021814,2]
[312831003,1706315433030,-183764.31277239,0.00021817,2]
[312831004,1706315433043,-7109.54364909,0.00021817,2]
[312831005,1706315433054,-524.96989304,0.00021817,2]
[312831007,1706315438146,-8537.5161,0.00021717,2]
[312831008,1706315438158,-867244.4307552,0.00021817,2]
[312831009,1706315438169,-3690.0073,0.00021818,2]
[312831010,1706315438182,-79852.2866,0.00021818,2]
[312831011,1706315438192,-455.9436,0.00021818,2]
[312831012,1706315438203,-1000.0,0.00021818,2]
[312831013,1706315438212,-1000.2065,0.00021818,2]
[312831014,1706315438224,-153.20760001,0.00021845,2]
[312831015,1706315438233,-500.0,0.00021918,2]
[312831016,1706315438242,-500.0,0.00021918,2]
[312831017,1706315438252,-500.0,0.00021918,2]
[312831018,1706315438262,-500.0,0.00021918,2]
[312831019,1706315438272,-394.03885114,0.00021918,2]
[312831020,1706315438282,-500.0,0.00021918,2]
[312831021,1706315438291,-253.54755832,0.00021918,2]
[312831022,1706315438300,-250.0,0.00021918,2]
[312831023,1706315438310,-19441.87,0.00021918,2]
[312831025,1706315438320,-153.20760001,0.00021927,2]
[312831027,1706315438329,-1043.56158327,0.00022,2]
[312831028,1706315438339,-176.58,0.00022,2]
[312831029,1706315438349,-153.20760001,0.00022008,2]
[312831030,1706315438359,-153.20760001,0.00022089,2]
[312831031,1706315438368,-153.20760001,0.0002217,2]
[312831033,1706315438378,-164.09888818,0.00022232,2]
[312831034,1706315438387,-153.20760001,0.00022251,2]
[312831035,1706315438396,-150.0,0.00022273,2]
[312831036,1706315438405,-821.6345251,0.0002231,2]
[312831037,1706315438414,-153.20760001,0.00022332,2]
[312831038,1706315438423,-160.74,0.00022355,2]
[312831040,1706315438433,-153.20760001,0.00022413,2]
[312831041,1706315438442,-945.1059,0.00022415,2]
[312831042,1706315438451,-199.1114,0.00022415,2]
[312831043,1706315438460,-1579.935,0.00022415,2]
[312831044,1706315438470,-150.0,0.00022424,2]
[312831045,1706315438479,-150.0,0.00022425,2]
[312831046,1706315438488,-150.0,0.00022427,2]
[312831047,1706315438498,-150.0,0.00022428,2]
[312831048,1706315438507,-150.0,0.00022429,2]
[312831049,1706315438517,-150.0,0.00022435,2]
[312831050,1706315438527,-150.0,0.00022436,2]
[312831051,1706315438537,-150.0,0.0002244,2]
[312831052,1706315438546,-300.0,0.00022441,2]
[312831053,1706315438556,-2942.4416,0.00022441,2]
[312831054,1706315438565,-1000.0,0.00022442,2]
[312831055,1706315438575,-150.0,0.00022443,2]
[312831056,1706315438584,-150.0,0.00022444,2]
[312831057,1706315438593,-150.0,0.00022446,2]
[312831058,1706315438603,-150.0,0.00022452,2]
[312831059,1706315438612,-150.0,0.00022454,2]
[312831060,1706315438621,-150.0,0.00022456,2]
[312831061,1706315438631,-300.0,0.00022461,2]
[312831062,1706315438640,-150.0,0.00022461,2]
[312831063,1706315438649,-150.0,0.00022461,2]
[312831064,1706315438659,-150.0,0.00022462,2]
[312831065,1706315438668,-150.0,0.00022464,2]
[312831066,1706315438677,-150.0,0.00022467,2]
[312831067,1706315438687,-150.0,0.00022469,2]
[312831068,1706315438697,-150.0,0.00022469,2]